[Event "HSG Open 2022 A"]
[Site "Hilversum, Netherlands"]
[Date "2022.06.17"]
[Round "2.6"]
[White "Wiersma, Eelke"]
[Black "Bosboom, Ardin"]
[Result "1-0"]
[TimeControl "1:50 + 0.10"]
[WhiteElo "2300"]
[BlackElo "2083"]

1. e4 {[%clk 01:50:12]} {[%emt 02:42:48]} c5 {[%clk 01:50:13]} 2. Nf3 {[%clk
01:50:12]} Nc6 {[%clk 01:50:17]} 3. d4 {[%clk 01:50:12]} cxd4 {[%clk 01:50:20]}
4. Nxd4 {[%clk 01:50:14]} Nf6 {[%clk 01:50:25]} 5. Nc3 {[%clk 01:50:13]} e5
{[%clk 01:50:28]} 6. Ndb5 {[%clk 01:50:15]} d6 {[%clk 01:50:33]} 7. Bg5 {[%clk
01:50:14]} a6 {[%clk 01:50:34]} 8. Na3 {[%clk 01:50:15]} b5 {[%clk 01:50:38]} 9.
Bxf6 {[%clk 01:50:16]} gxf6 {[%clk 01:50:42]} 10. Nd5 {[%clk 01:50:18]} f5
{[%clk 01:50:37]} 11. Bd3 {[%clk 01:50:14]} Be6 {[%clk 01:49:52]} 12. c3 {[%clk
01:50:11]} Bg7 {[%clk 01:48:57]} 13. Nxb5 {[%clk 01:50:04]} axb5 {[%clk
01:47:43]} 14. Bxb5 {[%clk 01:50:05]} Bd7 {[%clk 01:45:00]} 15. exf5 {[%clk
01:49:54]} O-O {[%clk 01:37:44]} 16. O-O {[%clk 01:49:36]} e4 {[%clk 01:31:53]}
17. a4 {[%clk 01:48:46]} Ne5 {[%clk 01:30:15]} 18. f6 {[%clk 01:41:05]} Bg4 19.
f3 {[%clk 01:30:40]} {[%emt 00:03:44]} exf3 {[%clk 01:13:55]} {[%emt 00:00:16]}
20. gxf3 {[%clk 01:30:01]} {[%emt 00:00:40]} Bh3 {[%clk 01:12:20]} {[%emt
00:01:46]} 21. f4 {[%clk 01:20:55]} {[%emt 00:09:17]} Bxf6 {[%clk 01:08:55]}
{[%emt 00:03:35]} 22. fxe5 {[%clk 01:19:43]} {[%emt 00:01:22]} Bxe5 {[%clk
01:08:49]} {[%emt 00:00:15]} 23. Rf2 {[%clk 01:19:29]} {[%emt 00:00:23]} Qg5+
{[%clk 01:00:52]} {[%emt 00:08:08]} 24. Kh1 {[%clk 01:19:01]} {[%emt 00:00:38]}
Qh4 {[%clk 01:00:50]} {[%emt 00:00:13]} 25. Qf3 {[%clk 01:13:32]} {[%emt
00:05:38]} Kh8 {[%clk 00:57:56]} {[%emt 00:03:04]} 26. Nf6 {[%clk 01:08:55]}
{[%emt 00:04:46]} Rab8 {[%clk 00:46:23]} {[%emt 00:11:44]} 27. Nd7 {[%clk
01:01:04]} {[%emt 00:08:01]} Rxb5 {[%clk 00:28:54]} {[%emt 00:17:39]} 28. Nxf8
{[%clk 00:56:28]} {[%emt 00:04:46]} Rb8 {[%clk 00:28:58]} {[%emt 00:00:06]} 29.
Qxf7 {[%clk 00:54:13]} {[%emt 00:02:25]} Bg7 {[%clk 00:22:07]} {[%emt
00:07:01]} 30. Re1 {[%clk 00:38:20]} {[%emt 00:16:02]} Bf5 {[%clk 00:13:23]}
{[%emt 00:08:55]} 31. Qxf5 {[%clk 00:35:49]} {[%emt 00:02:42]} Rxf8 {[%clk
00:13:12]} {[%emt 00:00:21]} 32. Qxf8+ {[%clk 00:35:39]} {[%emt 00:00:19]} Bxf8
{[%clk 00:13:17]} {[%emt 00:00:05]} 33. Rxf8+ {[%clk 00:35:45]} {[%emt
00:00:03]} Kg7 {[%clk 00:13:26]} {[%emt 00:00:02]} 34. Rfe8 {[%clk 00:34:51]}
{[%emt 00:01:04]} Qf2 {[%clk 00:11:31]} {[%emt 00:02:05]} 35. R8e2 {[%clk
00:34:00]} {[%emt 00:01:01]} Qc5 {[%clk 00:10:02]} {[%emt 00:01:39]} 36. Ra1
{[%clk 00:30:51]} {[%emt 00:03:19]} h5 {[%clk 00:07:48]} {[%emt 00:02:24]} 37.
a5 {[%clk 00:27:57]} {[%emt 00:03:04]} h4 {[%clk 00:07:39]} {[%emt 00:00:19]}
38. a6 {[%clk 00:26:01]} {[%emt 00:02:06]} Qd5+ {[%clk 00:06:55]} {[%emt
00:00:55]} 39. Kg1 {[%clk 00:25:28]} {[%emt 00:00:42]} Qc5+ {[%clk 00:04:44]}
{[%emt 00:02:21]} 40. Rf2 {[%clk 00:24:32]} {[%emt 00:01:06]} h3 {[%clk
00:04:39]} {[%emt 00:00:16]} 41. a7 {[%clk 00:23:29]} {[%emt 00:01:14]} Qg5+
{[%clk 00:04:38]} {[%emt 00:00:10]} 42. Kf1 {[%clk 00:23:02]} {[%emt 00:00:37]}
Qb5+ {[%clk 00:04:35]} {[%emt 00:00:12]} 43. Ke1 {[%clk 00:22:38]} {[%emt
00:00:34]} Qe5+ {[%clk 00:04:14]} {[%emt 00:00:31]} 44. Re2 {[%clk 00:22:31]}
{[%emt 00:00:17]} 1-0

[Event "HSG Open 2022 A"]
[Site "Hilversum, Netherlands"]
[Date "2022.06.17"]
[Round "2.7"]
[White "Van Meegen, Ruud"]
[Black "Jonsson, Gauti Pall"]
[Result "0-1"]
[TimeControl "1:50 + 0.10"]
[WhiteElo "2285"]
[BlackElo "2036"]

1. d4 {[%clk 01:50:16]} {[%emt 02:41:53]} Nf6 {[%clk 01:49:31]} 2. c4 {[%clk
01:50:15]} b6 {[%clk 01:47:36]} 3. Nc3 {[%clk 01:49:11]} Bb7 {[%clk 01:46:14]}
4. f3 {[%clk 01:48:55]} Nc6 {[%clk 01:43:26]} 5. e4 {[%clk 01:43:38]} e5 {[%clk
01:42:05]} 6. d5 {[%clk 01:38:27]} Ne7 {[%clk 01:41:20]} 7. Bd3 {[%clk
01:37:35]} Ng6 {[%clk 01:40:18]} 8. Be3 {[%clk 01:31:41]} h5 {[%clk 01:37:17]}
9. Qd2 {[%clk 01:27:44]} h4 {[%clk 01:35:36]} 10. Nge2 {[%clk 01:27:04]} Bc5
{[%clk 01:30:59]} 11. Bxc5 {[%clk 01:19:05]} bxc5 {[%clk 01:31:01]} 12. O-O-O
Nh5 {[%clk 01:27:02]} {[%emt 00:00:37]} 13. g3 {[%clk 01:11:54]} {[%emt
00:06:47]} d6 {[%clk 01:25:34]} {[%emt 00:01:38]} 14. f4 {[%clk 01:09:40]}
{[%emt 00:02:24]} Qd7 {[%clk 01:17:26]} {[%emt 00:08:17]} 15. Bc2 {[%clk
01:04:54]} {[%emt 00:04:57]} O-O-O {[%clk 01:14:44]} {[%emt 00:02:52]} 16. Ba4
{[%clk 01:03:27]} {[%emt 00:01:37]} c6 {[%clk 01:12:24]} {[%emt 00:02:31]} 17.
dxc6 {[%clk 00:47:52]} {[%emt 00:15:45]} Bxc6 {[%clk 01:12:24]} {[%emt
00:00:08]} 18. Bxc6 {[%clk 00:47:56]} {[%emt 00:00:07]} Qxc6 {[%clk 01:12:26]}
{[%emt 00:00:07]} 19. Nb5 {[%clk 00:37:42]} {[%emt 00:10:25]} Kb8 {[%clk
01:10:26]} {[%emt 00:02:10]} 20. f5 {[%clk 00:34:15]} {[%emt 00:03:37]} Ne7
{[%clk 01:09:17]} {[%emt 00:01:18]} 21. g4 {[%clk 00:33:23]} {[%emt 00:01:04]}
Nf6 {[%clk 01:08:00]} {[%emt 00:01:27]} 22. Nec3 {[%clk 00:26:38]} {[%emt
00:06:54]} Nxe4 {[%clk 01:01:40]} {[%emt 00:06:30]} 23. Qc2 {[%clk 00:22:06]}
{[%emt 00:04:42]} Nxc3 {[%clk 01:00:22]} {[%emt 00:01:29]} 24. Nxc3 {[%clk
00:21:49]} {[%emt 00:00:26]} Qf3 {[%clk 00:54:51]} {[%emt 00:05:40]} 25. Rhg1
{[%clk 00:19:59]} {[%emt 00:02:01]} Qf4+ {[%clk 00:54:41]} {[%emt 00:00:20]} 26.
Kb1 {[%clk 00:19:06]} {[%emt 00:01:04]} Qxc4 {[%clk 00:54:19]} {[%emt
00:00:32]} 27. Ne4 {[%clk 00:15:13]} {[%emt 00:04:02]} Qxc2+ {[%clk 00:53:04]}
{[%emt 00:01:25]} 28. Kxc2 {[%clk 00:15:18]} {[%emt 00:00:05]} Kc7 {[%clk
00:51:38]} {[%emt 00:01:36]} 29. Ng5 {[%clk 00:14:58]} {[%emt 00:00:30]} Rdf8
{[%clk 00:48:34]} {[%emt 00:03:14]} 30. Ne4 {[%clk 00:12:53]} {[%emt 00:02:15]}
Nc8 {[%clk 00:48:25]} {[%emt 00:00:20]} 31. Rd2 {[%clk 00:12:28]} {[%emt
00:00:34]} Rd8 {[%clk 00:47:02]} {[%emt 00:01:32]} 32. Rgd1 {[%clk 00:11:48]}
{[%emt 00:00:51]} g6 {[%clk 00:42:14]} {[%emt 00:04:59]} 33. f6 {[%clk
00:11:19]} {[%emt 00:00:38]} h3 {[%clk 00:40:02]} {[%emt 00:02:23]} 34. Rd3
{[%clk 00:09:07]} {[%emt 00:02:21]} Kc6 {[%clk 00:38:42]} {[%emt 00:01:31]} 35.
Ng5 {[%clk 00:08:20]} {[%emt 00:00:57]} Rd7 {[%clk 00:37:52]} {[%emt 00:01:00]}
36. Rxh3 {[%clk 00:07:36]} {[%emt 00:00:53]} Rxh3 {[%clk 00:37:39]} {[%emt
00:00:23]} 37. Nxh3 {[%clk 00:07:42]} {[%emt 00:00:05]} d5 {[%clk 00:37:32]}
{[%emt 00:00:17]} 38. Ng5 {[%clk 00:07:38]} {[%emt 00:00:14]} Nd6 {[%clk
00:34:22]} {[%emt 00:03:19]} 39. Re1 {[%clk 00:05:13]} {[%emt 00:02:36]} e4
{[%clk 00:33:12]} {[%emt 00:01:20]} 40. h4 {[%clk 00:05:14]} {[%emt 00:00:09]}
Rd8 {[%clk 00:32:58]} {[%emt 00:00:23]} 41. b3 {[%clk 00:04:56]} {[%emt
00:00:28]} Rh8 {[%clk 00:31:09]} {[%emt 00:01:58]} 42. Rh1 {[%clk 00:04:55]}
{[%emt 00:00:12]} d4 {[%clk 00:31:01]} {[%emt 00:00:19]} 43. h5 {[%clk
00:01:21]} {[%emt 00:03:44]} gxh5 {[%clk 00:29:53]} {[%emt 00:01:18]} 44. gxh5
{[%clk 00:01:27]} {[%emt 00:00:04]} Rh6 {[%clk 00:29:40]} {[%emt 00:00:22]} 45.
Rh4 {[%clk 00:01:04]} {[%emt 00:00:33]} Kd5 {[%clk 00:29:23]} {[%emt 00:00:27]}
46. Nh3 {[%clk 00:00:50]} {[%emt 00:00:24]} Ke5 {[%clk 00:28:16]} {[%emt
00:01:17]} 47. Nf2 {[%clk 00:00:57]} {[%emt 00:00:03]} Kxf6 {[%clk 00:26:08]}
{[%emt 00:02:19]} 48. Nxe4+ {[%clk 00:00:50]} {[%emt 00:00:17]} Nxe4 {[%clk
00:25:58]} {[%emt 00:00:20]} 49. Rxe4 {[%clk 00:00:57]} {[%emt 00:00:03]} Rxh5
{[%clk 00:25:49]} {[%emt 00:00:18]} 50. b4 {[%clk 00:00:49]} {[%emt 00:00:17]}
Kf5 {[%clk 00:22:18]} {[%emt 00:03:41]} 51. Re7 {[%clk 00:00:56]} {[%emt
00:00:04]} c4 {[%clk 00:22:18]} {[%emt 00:00:10]} 52. Rxf7+ {[%clk 00:01:03]}
{[%emt 00:00:03]} Ke6 {[%clk 00:22:11]} {[%emt 00:00:17]} 53. Rf2 {[%clk
00:00:28]} {[%emt 00:00:45]} a5 {[%clk 00:21:54]} {[%emt 00:00:27]} 54. bxa5
{[%clk 00:00:29]} {[%emt 00:00:10]} Rxa5 {[%clk 00:21:59]} {[%emt 00:00:05]} 55.
Kb2 {[%clk 00:00:34]} {[%emt 00:00:04]} Kd6 {[%clk 00:20:05]} {[%emt 00:02:03]}
56. Rf4 {[%clk 00:00:21]} {[%emt 00:00:25]} c3+ {[%clk 00:18:52]} {[%emt
00:01:23]} 57. Kb3 {[%clk 00:00:24]} {[%emt 00:00:06]} Rb5+ {[%clk 00:17:26]}
{[%emt 00:01:36]} 58. Kc2 {[%clk 00:00:28]} {[%emt 00:00:06]} Ke5 {[%clk
00:17:20]} {[%emt 00:00:16]} 59. Rh4 {[%clk 00:00:32]} {[%emt 00:00:07]} Rb2+
{[%clk 00:17:20]} {[%emt 00:00:09]} 60. Kc1 {[%clk 00:00:38]} {[%emt 00:00:04]}
Rxa2 {[%clk 00:17:13]} {[%emt 00:00:18]} 61. Rh3 {[%clk 00:00:43]} {[%emt
00:00:04]} Kd5 {[%clk 00:17:03]} {[%emt 00:00:20]} 62. Kb1 {[%clk 00:00:33]}
{[%emt 00:00:21]} Rg2 {[%clk 00:16:56]} {[%emt 00:00:17]} 63. Rh8 {[%clk
00:00:20]} {[%emt 00:00:22]} Kc4 {[%clk 00:16:19]} {[%emt 00:00:48]} 64. Rh3
{[%clk 00:00:22]} {[%emt 00:00:08]} Rg1+ {[%clk 00:16:11]} {[%emt 00:00:18]} 65.
Kc2 {[%clk 00:00:15]} {[%emt 00:00:17]} d3+ {[%clk 00:16:08]} {[%emt 00:00:13]}
66. Rxd3 {[%clk 00:00:21]} {[%emt 00:00:04]} Rg2+ {[%clk 00:16:13]} {[%emt
00:00:05]} 0-1

[Event "HSG Open 2022 A"]
[Site "Hilversum, Netherlands"]
[Date "2022.06.17"]
[Round "2.8"]
[White "Pham, Khoi"]
[Black "Schilstra, Laurens"]
[Result "1-0"]
[TimeControl "1:50 + 0.10"]
[WhiteElo "2244"]
[BlackElo "1962"]

1. e4 {[%clk 01:50:18]} {[%emt 02:42:47]} c5 {[%clk 01:50:09]} 2. Nf3 {[%clk
01:50:24]} e6 {[%clk 01:50:07]} 3. d4 {[%clk 01:50:29]} cxd4 {[%clk 01:50:02]}
4. Nxd4 Nf6 {[%clk 01:50:04]} 5. Nc3 {[%clk 01:50:39]} d6 {[%clk 01:50:04]} 6.
g4 {[%clk 01:50:18]} h6 {[%clk 01:49:02]} 7. h4 {[%clk 01:49:51]} Nc6 {[%clk
01:47:07]} 8. Nxc6 {[%clk 01:46:46]} bxc6 {[%clk 01:47:08]} 9. Qf3 {[%clk
01:46:50]} Nd7 {[%clk 01:40:35]} 10. Be3 {[%clk 01:45:03]} Qa5 {[%clk
01:36:01]} 11. g5 {[%clk 01:26:45]} Ne5 {[%clk 01:29:43]} 12. Qg2 {[%clk
01:25:47]} Qb4 {[%clk 01:27:19]} 13. Bd2 {[%clk 01:21:36]} Qxb2 {[%clk
01:24:51]} 14. Rb1 {[%clk 01:21:39]} {[%emt 00:00:05]} Qxc2 {[%clk 01:23:42]}
{[%emt 00:01:12]} 15. gxh6 {[%clk 01:19:06]} {[%emt 00:02:45]} gxh6 {[%clk
01:18:44]} {[%emt 00:05:07]} 16. Rh3 {[%clk 01:17:14]} {[%emt 00:02:03]} d5
{[%clk 01:12:44]} {[%emt 00:06:09]} 17. exd5 {[%clk 01:14:35]} {[%emt
00:02:49]} cxd5 {[%clk 01:12:32]} {[%emt 00:00:22]} 18. f4 {[%clk 01:13:17]}
{[%emt 00:01:28]} Qf5 {[%clk 01:11:32]} {[%emt 00:01:09]} 19. fxe5 {[%clk
01:12:36]} {[%emt 00:00:52]} Bd7 {[%clk 01:09:19]} {[%emt 00:02:21]} 20. Bd3
{[%clk 01:08:01]} {[%emt 00:04:46]} Qxe5+ {[%clk 01:08:49]} {[%emt 00:00:40]}
21. Re3 {[%clk 01:08:05]} {[%emt 00:00:08]} Qh5 {[%clk 01:06:23]} {[%emt
00:02:36]} 22. Nxd5 {[%clk 01:01:47]} {[%emt 00:06:27]} Qxh4+ {[%clk 01:05:43]}
{[%emt 00:00:51]} 23. Kf1 {[%clk 00:59:53]} {[%emt 00:02:04]} Bc6 {[%clk
00:59:20]} {[%emt 00:06:30]} 24. Be1 {[%clk 00:48:34]} {[%emt 00:11:32]} Qd8
{[%clk 00:55:48]} {[%emt 00:03:41]} 25. Rxe6+ {[%clk 00:43:30]} {[%emt
00:05:15]} fxe6 {[%clk 00:55:48]} {[%emt 00:00:10]} 26. Qg6+ {[%clk 00:43:36]}
{[%emt 00:00:03]} Kd7 {[%clk 00:55:46]} {[%emt 00:00:12]} 27. Nf6+ {[%clk
00:43:36]} {[%emt 00:00:10]} Kd6 {[%clk 00:53:39]} {[%emt 00:02:17]} 28. Bb4+
{[%clk 00:43:33]} {[%emt 00:00:14]} Ke5 {[%clk 00:53:17]} {[%emt 00:00:32]} 29.
Re1+ {[%clk 00:43:21]} {[%emt 00:00:21]} Kd4 {[%clk 00:53:11]} {[%emt
00:00:17]} 30. Re4+ {[%clk 00:43:07]} {[%emt 00:00:24]} Kxd3 {[%clk 00:53:04]}
{[%emt 00:00:17]} 31. Qg3+ {[%clk 00:43:11]} {[%emt 00:00:06]} Kc2 {[%clk
00:52:59]} {[%emt 00:00:15]} 32. Qb3+ {[%clk 00:43:03]} {[%emt 00:00:17]} Kc1
{[%clk 00:53:01]} {[%emt 00:00:08]} 33. Re1+ {[%clk 00:43:06]} {[%emt
00:00:07]} Qd1 {[%clk 00:53:08]} {[%emt 00:00:03]} 34. Rxd1# {[%clk 00:43:09]}
{[%emt 00:00:07]} 1-0

[Event "HSG Open 2022 A"]
[Site "Hilversum, Netherlands"]
[Date "2022.06.17"]
[Round "2.9"]
[White "Wagenvoorde, Guido"]
[Black "Grutter, Tim"]
[Result "1/2-1/2"]
[TimeControl "1:50 + 0.10"]
[WhiteElo "2090"]
[BlackElo "2234"]

1. d4 {[%clk 01:48:13]} {[%emt 00:02:05]} Nf6 {[%clk 01:49:45]} {[%emt
00:00:35]} 2. c4 {[%clk 01:48:14]} {[%emt 00:00:09]} g6 {[%clk 01:49:49]}
{[%emt 00:00:07]} 3. Nc3 {[%clk 01:48:17]} {[%emt 00:00:07]} Bg7 {[%clk
01:49:55]} {[%emt 00:00:03]} 4. e4 {[%clk 01:48:21]} {[%emt 00:00:06]} d6
{[%clk 01:50:02]} {[%emt 00:00:04]} 5. Be2 {[%clk 01:48:25]} {[%emt 00:00:07]}
O-O {[%clk 01:50:04]} {[%emt 00:00:07]} 6. Bg5 {[%clk 01:48:27]} {[%emt
00:00:07]} c5 {[%clk 01:43:44]} {[%emt 00:06:30]} 7. d5 {[%clk 01:48:27]}
{[%emt 00:00:09]} h6 {[%clk 01:43:21]} {[%emt 00:00:34]} 8. Be3 {[%clk
01:48:29]} {[%emt 00:00:09]} e6 {[%clk 01:43:11]} {[%emt 00:00:21]} 9. Qd2
{[%clk 01:48:31]} {[%emt 00:00:07]} exd5 {[%clk 01:43:04]} {[%emt 00:00:17]} 10.
exd5 {[%clk 01:48:33]} {[%emt 00:00:07]} Kh7 {[%clk 01:41:58]} {[%emt
00:01:18]} 11. h3 {[%clk 01:48:33]} {[%emt 00:00:08]} Re8 {[%clk 01:38:33]}
{[%emt 00:03:35]} 12. Nf3 {[%clk 01:48:18]} {[%emt 00:00:25]} Bf5 {[%clk
01:34:42]} {[%emt 00:04:02]} 13. O-O {[%clk 01:47:31]} {[%emt 00:00:57]} Ne4
{[%clk 01:28:55]} {[%emt 00:05:56]} 14. Nxe4 {[%clk 01:47:33]} {[%emt
00:00:10]} Bxe4 {[%clk 01:28:54]} {[%emt 00:00:10]} 15. Rae1 {[%clk 01:45:20]}
{[%emt 00:02:22]} a6 {[%clk 01:23:02]} {[%emt 00:06:02]} 16. b3 {[%clk
01:42:31]} {[%emt 00:02:59]} Bxf3 {[%clk 01:13:50]} {[%emt 00:09:21]} 17. Bxf3
{[%clk 01:41:11]} {[%emt 00:01:30]} Nd7 {[%clk 01:12:53]} {[%emt 00:01:07]} 18.
Be2 {[%clk 01:24:43]} {[%emt 00:16:38]} Nf6 {[%clk 01:10:44]} {[%emt 00:02:20]}
19. Bd3 {[%clk 01:20:21]} {[%emt 00:04:32]} Qd7 {[%clk 01:05:01]} {[%emt
00:05:53]} 20. a4 {[%clk 01:10:27]} {[%emt 00:10:03]} Re7 {[%clk 00:58:39]}
{[%emt 00:06:33]} 21. Bf4 {[%clk 01:08:25]} {[%emt 00:02:11]} Rae8 {[%clk
00:57:33]} {[%emt 00:01:16]} 22. Rxe7 {[%clk 01:06:03]} {[%emt 00:02:32]} Qxe7
{[%clk 00:57:10]} {[%emt 00:00:33]} 23. Rd1 {[%clk 00:58:15]} {[%emt 00:07:58]}
Nh5 {[%clk 00:50:11]} {[%emt 00:07:10]} 24. Be3 {[%clk 00:48:29]} {[%emt
00:09:56]} Qh4 {[%clk 00:45:42]} {[%emt 00:04:39]} 25. b4 {[%clk 00:37:10]}
{[%emt 00:11:29]} Bd4 {[%clk 00:38:43]} {[%emt 00:07:09]} 26. bxc5 {[%clk
00:33:37]} {[%emt 00:03:43]} dxc5 {[%clk 00:37:34]} {[%emt 00:01:18]} 27. Bxd4
{[%clk 00:23:42]} {[%emt 00:10:06]} Qxd4 {[%clk 00:36:06]} {[%emt 00:01:38]} 28.
Bf1 {[%clk 00:23:43]} {[%emt 00:00:08]} Qe5 {[%clk 00:32:48]} {[%emt 00:03:28]}
29. g3 {[%clk 00:19:59]} {[%emt 00:03:55]} Ng7 {[%clk 00:27:12]} {[%emt
00:05:46]} 30. Rb1 {[%clk 00:13:40]} {[%emt 00:06:29]} Re7 {[%clk 00:26:00]}
{[%emt 00:01:21]} 31. Bd3 {[%clk 00:11:48]} {[%emt 00:02:02]} Ne8 {[%clk
00:23:54]} {[%emt 00:02:16]} 32. a5 {[%clk 00:11:06]} {[%emt 00:00:53]} Nd6
{[%clk 00:22:25]} {[%emt 00:01:39]} 33. Qc2 {[%clk 00:10:55]} {[%emt 00:00:21]}
Kg7 {[%clk 00:18:38]} {[%emt 00:03:58]} 34. Kg2 {[%clk 00:10:58]} {[%emt
00:00:06]} Qd4 {[%clk 00:16:11]} {[%emt 00:02:37]} 35. Rd1 {[%clk 00:11:00]}
{[%emt 00:00:08]} Qe5 {[%clk 00:15:03]} {[%emt 00:01:18]} 36. Rb1 {[%clk
00:11:03]} {[%emt 00:00:07]} 1/2-1/2

[Event "HSG Open 2022 A"]
[Site "Hilversum, Netherlands"]
[Date "2022.06.17"]
[Round "2.10"]
[White "De Groote, Ewoud"]
[Black "Van Orsouw, Theo"]
[Result "1-0"]
[TimeControl "1:50 + 0.10"]
[WhiteElo "2233"]
[BlackElo "1868"]

1. e4 {[%clk 01:50:16]} {[%emt 00:00:04]} c5 {[%clk 01:48:04]} {[%emt
00:02:16]} 2. Nf3 {[%clk 01:50:23]} {[%emt 00:00:03]} d6 {[%clk 01:48:04]}
{[%emt 00:00:11]} 3. d4 {[%clk 01:50:30]} {[%emt 00:00:03]} cxd4 {[%clk
01:48:07]} {[%emt 00:00:07]} 4. Nxd4 {[%clk 01:50:37]} {[%emt 00:00:04]} Nf6
{[%clk 01:48:04]} {[%emt 00:00:14]} 5. Nc3 {[%clk 01:50:44]} {[%emt 00:00:02]}
g6 {[%clk 01:48:07]} {[%emt 00:00:06]} 6. Be3 {[%clk 01:50:31]} {[%emt
00:00:23]} Bg7 {[%clk 01:48:11]} {[%emt 00:00:07]} 7. Be2 {[%clk 01:50:01]}
{[%emt 00:00:40]} O-O {[%clk 01:47:59]} {[%emt 00:00:21]} 8. h4 {[%clk
01:48:52]} {[%emt 00:01:19]} h5 {[%clk 01:47:44]} {[%emt 00:00:26]} 9. Qd2
{[%clk 01:48:46]} {[%emt 00:00:15]} Nc6 {[%clk 01:47:32]} {[%emt 00:00:22]} 10.
O-O-O {[%clk 01:46:40]} {[%emt 00:02:16]} d5 {[%clk 01:45:24]} {[%emt
00:02:17]} 11. Nxc6 {[%clk 01:32:41]} {[%emt 00:14:09]} bxc6 {[%clk 01:45:26]}
{[%emt 00:00:08]} 12. exd5 {[%clk 01:18:29]} {[%emt 00:14:23]} Nxd5 {[%clk
01:45:07]} {[%emt 00:00:29]} 13. Bd4 {[%clk 01:09:30]} {[%emt 00:09:09]} e5
{[%clk 01:37:36]} {[%emt 00:07:41]} 14. Bc5 {[%clk 01:09:28]} {[%emt 00:04:32]}
Be6 {[%clk 01:36:41]} 15. Ne4 {[%clk 01:02:22]} {[%emt 00:04:01]} Qc7 {[%clk
01:34:42]} {[%emt 00:02:09]} 16. Ng5 {[%clk 00:47:48]} {[%emt 00:14:45]} Rfe8
{[%clk 01:32:15]} {[%emt 00:02:37]} 17. Nxe6 {[%clk 00:46:12]} {[%emt
00:01:46]} Rxe6 {[%clk 01:32:00]} {[%emt 00:00:24]} 18. Rh3 {[%clk 00:39:17]}
{[%emt 00:07:05]} Rb8 {[%clk 01:28:16]} {[%emt 00:03:54]} 19. Rb3 {[%clk
00:38:00]} {[%emt 00:01:28]} Rxb3 {[%clk 01:26:30]} {[%emt 00:01:56]} 20. axb3
{[%clk 00:37:59]} {[%emt 00:00:12]} e4 {[%clk 01:21:00]} {[%emt 00:05:39]} 21.
Bc4 {[%clk 00:34:26]} {[%emt 00:03:43]} Rf6 {[%clk 01:15:46]} {[%emt 00:05:24]}
22. Bxd5 {[%clk 00:30:09]} {[%emt 00:04:27]} cxd5 {[%clk 01:15:15]} {[%emt
00:00:40]} 23. Qxd5 {[%clk 00:29:36]} {[%emt 00:00:44]} Kh7 {[%clk 01:13:47]}
{[%emt 00:01:38]} 24. Be3 {[%clk 00:26:05]} {[%emt 00:03:41]} Re6 {[%clk
01:12:49]} {[%emt 00:01:08]} 25. Kb1 {[%clk 00:23:50]} {[%emt 00:02:25]} Ra6
{[%clk 01:06:44]} {[%emt 00:06:15]} 26. b4 {[%clk 00:20:05]} {[%emt 00:03:55]}
Qe7 {[%clk 01:05:58]} {[%emt 00:00:55]} 27. c3 {[%clk 00:19:12]} {[%emt
00:01:03]} Qxh4 {[%clk 01:02:33]} {[%emt 00:03:36]} 28. Qxf7 {[%clk 00:18:24]}
{[%emt 00:00:58]} Qg4 {[%clk 01:01:50]} {[%emt 00:00:52]} 29. Rd7 {[%clk
00:18:16]} {[%emt 00:00:19]} 1-0